fUSD/lending_fUSD_20260413
["ID","MTS","AMOUNT","RATE_DAILY","PERIOD"]
[420394698,1776078637198,-500.0,0.0002422,2]
[420394699,1776078637210,-500.0,0.0002422,2]
[420394700,1776078637240,-500.0,0.0002422,2]
[420394701,1776078637253,-500.0,0.0002422,2]
[420394702,1776078637277,-500.0,0.0002422,2]
[420394703,1776078637329,-500.0,0.0002422,2]
[420394704,1776078637346,-500.0,0.0002422,2]
[420394705,1776078637384,-500.0,0.0002422,2]
[420394706,1776078637395,-500.0,0.0002422,2]
[420394707,1776078637428,-500.0,0.0002422,2]
[420394708,1776078637442,-500.0,0.0002422,2]
[420394709,1776078637484,-500.0,0.0002422,2]
[420394711,1776078637499,-500.0,0.0002422,2]
[420394712,1776078637530,-602.89395647,0.0002422,2]
[420394713,1776078637542,-500.0,0.0002422,2]
[420394714,1776078637565,-500.0,0.0002422,2]
[420394716,1776078637589,-500.0,0.0002422,2]
[420394718,1776078637602,-500.0,0.0002422,2]
[420394719,1776078637623,-500.0,0.0002422,2]
[420394720,1776078637646,-500.0,0.0002422,2]
[420394721,1776078637662,-500.0,0.0002422,2]
[420394722,1776078637674,-500.0,0.0002422,2]
[420394723,1776078637705,-500.0,0.0002422,2]
[420394724,1776078637722,-500.0,0.0002422,2]
[420394725,1776078637743,-501.8466249,0.0002422,2]
[420394726,1776078637772,-500.0,0.0002422,2]
[420394727,1776078637787,-500.0,0.0002422,2]
[420394728,1776078637824,-500.0,0.0002422,2]
[420394729,1776078637847,-500.0,0.0002422,2]
[420394730,1776078637878,-324.9276641,0.0002422,2]
[420394731,1776078637909,-500.0,0.0002422,2]
[420394732,1776078637963,-500.0,0.0002422,2]
[420394733,1776078637988,-500.0,0.0002422,2]
[420394734,1776078638001,-500.0,0.0002422,2]
[420394735,1776078638029,-500.0,0.0002422,2]
[420394736,1776078638061,-500.0,0.0002422,2]
[420394737,1776078638073,-500.0,0.0002422,2]
[420394738,1776078638094,-500.0,0.0002422,2]
[420394739,1776078638113,-500.0,0.0002422,2]
[420394740,1776078638125,-500.0,0.0002422,2]
[420394741,1776078638139,-500.0,0.0002422,2]
[420394742,1776078638152,-500.0,0.0002422,2]
[420394743,1776078638166,-500.0,0.0002422,2]
[420394744,1776078638183,-500.0,0.0002422,2]
[420394745,1776078638196,-500.0,0.0002422,2]
[420394746,1776078638208,-500.0,0.0002422,2]
[420394747,1776078638227,-500.0,0.0002422,2]
[420394748,1776078638242,-500.0,0.0002422,2]
[420394749,1776078638276,-500.0,0.0002422,2]
[420394750,1776078638292,-506.54632235,0.0002422,2]
[420394751,1776078638319,-500.0,0.0002422,2]
[420394752,1776078638339,-500.0,0.0002422,2]
[420394753,1776078638366,-500.0,0.0002422,2]
[420394754,1776078638383,-500.0,0.0002422,2]
[420394755,1776078638410,-500.0,0.0002422,2]
[420394756,1776078638427,-500.0,0.0002422,2]
[420394757,1776078638464,-500.0,0.0002422,2]
[420394758,1776078638493,-102.6468645,0.0002422,2]
[420394831,1776078639474,-397.3531355,0.0002422,2]
[420394833,1776078639505,-141.27906772,0.0002422,2]
[420394836,1776078639525,-358.72093228,0.0002422,2]
[420394837,1776078639554,-51.83278804,0.0002422,2]
[420394995,1776078642413,-448.16721196,0.0002422,2]
[420394996,1776078642449,-500.0,0.0002422,2]
[420394998,1776078642476,-500.0,0.0002422,2]
[420395000,1776078642492,-500.0,0.0002422,2]
[420395002,1776078642502,-500.0,0.0002422,2]
[420395004,1776078642516,-500.0,0.0002422,2]
[420395006,1776078642530,-500.0,0.0002422,2]
[420395008,1776078642548,-500.0,0.0002422,2]
[420395010,1776078642559,-500.0,0.0002422,2]
[420395012,1776078642573,-500.0,0.0002422,2]
[420395014,1776078642584,-500.0,0.0002422,2]
[420395016,1776078642595,-500.0,0.0002422,2]
[420395018,1776078642613,-500.0,0.0002422,2]
[420395020,1776078642636,-500.0,0.0002422,2]
[420395022,1776078642645,-500.0,0.0002422,2]
[420395023,1776078642673,-500.0,0.0002422,2]
[420395024,1776078642687,-500.0,0.0002422,2]
[420395025,1776078642709,-11.83278804,0.0002422,2]
[420395026,1776078642722,-488.16721196,0.0002422,2]
[420395027,1776078642731,-500.0,0.0002422,2]
[420395028,1776078642753,-500.0,0.0002422,2]
[420395029,1776078642765,-500.0,0.0002422,2]
[420395030,1776078642774,-500.0,0.0002422,2]
[420395031,1776078642805,-500.0,0.0002422,2]
[420395032,1776078642814,-500.0,0.0002422,2]
[420395033,1776078642851,-500.0,0.0002422,2]
[420395034,1776078642860,-500.0,0.0002422,2]
[420395035,1776078642872,-500.0,0.0002422,2]
[420395036,1776078642882,-500.0,0.0002422,2]
[420395038,1776078642896,-500.0,0.0002422,2]
[420395040,1776078642906,-500.0,0.0002422,2]
[420395042,1776078642919,-490.0,0.0002422,2]
[420395044,1776078642928,-506.15709644,0.0002422,2]
[420395046,1776078642947,-500.0,0.0002422,2]
[420395048,1776078642957,-500.0,0.0002422,2]
[420395050,1776078642966,-533.87014853,0.0002422,2]
[420395051,1776078642977,-500.0,0.0002422,2]
[420395054,1776078642995,-500.0,0.0002422,2]
[420395056,1776078643005,-500.0,0.0002422,2]
[420395057,1776078643014,-500.0,0.0002422,2]
[420395059,1776078643030,-500.0,0.0002422,2]
[420395061,1776078643047,-500.0,0.0002422,2]
[420395063,1776078643057,-500.0,0.0002422,2]
[420395065,1776078643068,-152.0,0.0002422,5]
[420395067,1776078643077,-200775.60554307,0.00024221,2]
[420395069,1776078643097,-981.07549117,0.00024221,2]
[420395072,1776078643123,-1000.03372198,0.00024221,2]
[420395078,1776078643182,-745.46632711,0.00024221,2]
[420395117,1776078643649,-685.0,0.00024221,2]
[420395119,1776078643661,-567.15887873,0.00024221,2]
[420395303,1776078645722,-5867.97112436,0.00024221,2]
[420395318,1776078645914,-504.89997552,0.00024221,2]
[420395320,1776078645935,-262.0,0.00024221,2]
[420396284,1776078724553,2037.6,0.00030082,120]
[420396285,1776078744681,204.006118,0.00026931,120]
[420396286,1776078813580,-500.0,0.00018966,2]
[420396287,1776078813636,-274.0,0.00018966,2]
[420396288,1776078813692,-2043.794,0.00023736,4]
[420396289,1776078813759,-1864.422,0.00024119,2]
[420396290,1776078814219,-635.578,0.00024119,2]
[420396291,1776078814276,-160.4187,0.0002412,2]
[420396292,1776078814328,-301.39066722,0.00024121,2]
[420396293,1776078814369,-200.0,0.00024206,2]
[420396294,1776078814422,-2193.56941673,0.00024206,2]
[420396295,1776078814465,-500.0,0.00024206,2]
[420396296,1776078815186,-500.0,0.00024206,2]
[420396297,1776078815313,-500.0,0.00024206,2]
[420396298,1776078817136,588.0,0.0003013,120]
[420396299,1776078817330,-500.0,0.00024206,2]
[420396300,1776078817372,-151.0,0.00024218,7]
[420396301,1776078817411,-243.42455603,0.0002422,2]
[420396302,1776078817443,-500.0,0.0002422,2]
[420396303,1776078817481,-500.0,0.0002422,2]
[420396304,1776078817520,-222.98553857,0.0002422,2]
[420396305,1776078817550,-1087.91,0.0002422,2]
[420396306,1776078817592,-189.08439157,0.0002422,2]
[420396307,1776078817628,-500.0,0.0002422,2]
[420396308,1776078817670,-500.0,0.0002422,2]
[420396309,1776078817709,-512.74505269,0.0002422,2]
[420396310,1776078817772,1825.0,0.0003013,120]
[420396311,1776078818531,860.0,0.0003013,120]
[420396312,1776078819509,389.0,0.0003013,120]
[420396313,1776078819823,-500.0,0.0002422,2]
[420396314,1776078819860,-500.0,0.0002422,2]
[420396315,1776078819902,-500.0,0.0002422,2]
[420396316,1776078819957,-500.0,0.0002422,2]
[420396317,1776078819996,-500.0,0.0002422,2]
[420396318,1776078820039,-500.0,0.0002422,2]
[420396319,1776078820081,-500.0,0.0002422,2]
[420396320,1776078820123,-500.0,0.0002422,2]
[420396321,1776078820164,-500.0,0.0002422,2]
[420396322,1776078820226,-488.1698444,0.0002422,2]
[420396323,1776078820669,410.0,0.0003013,120]
[420396324,1776078822653,-23.6703112,0.0002422,2]
[420396325,1776078822703,-500.0,0.0002422,2]
[420396326,1776078822753,-500.0,0.0002422,2]
[420396327,1776078822789,-578.4,0.0002422,2]
[420396328,1776078822821,-500.0,0.0002422,2]
[420396329,1776078822861,-500.0,0.0002422,2]
[420396330,1776078822897,-1495.4793776,0.0002422,2]
[420396331,1776078823141,-1804.9106224,0.0002422,2]
[420396332,1776078823203,-578.20924308,0.00024221,2]
[420396333,1776078823484,-368.74977944,0.00024221,2]
[420396334,1776078823500,-578.20924308,0.00024221,2]
[420396335,1776078823529,-5233.77026904,0.00024221,2]
[420396336,1776078828241,2760.043455,0.00026931,120]
[420396337,1776078841638,1110.41364375,0.00030137,120]
[420396338,1776078841864,2559.18476184,0.00026643,120]
[420396339,1776078852704,4885.373069,0.00026931,120]
[420396340,1776078857027,9413.898052,0.00026931,120]
[420396341,1776078862993,177.0,0.000188,2]
[420396342,1776078863244,177.0,0.000188,2]
[420396343,1776078864199,153.0,0.000188,2]
[420396344,1776078864638,152.0,0.000188,2]
[420396345,1776078864930,152.0,0.000188,2]
[420396346,1776078870960,152.0,0.000188,2]
[420396347,1776078877931,152.0,0.0003013,120]
[420396348,1776078878755,1814.0,0.0003013,120]
[420396349,1776078879535,1020.0,0.0003013,120]
[420396350,1776078880346,1867.0,0.0003013,120]
[420396353,1776078881873,380.0,0.0003013,120]
[420396354,1776078882852,614.0,0.0003013,120]
[420396355,1776078883230,1792.0,0.0003013,120]
[420396356,1776078883327,10152.07886,0.00026916,120]
[420396357,1776078883715,977.0,0.0003013,120]
[420396358,1776078884426,610.0,0.0003013,120]
[420396359,1776078885190,1182.0,0.0003013,120]
[420396360,1776078886000,528.0,0.0003013,120]
[420396361,1776078902906,152.6,0.0003013,120]
[420396362,1776078904515,183.0,0.00025341,120]
[420396363,1776078905221,3474.140645,0.00026931,120]
[420396364,1776078905613,183.0,0.00026608,120]
[420396366,1776078911457,2415.51291,0.00026931,120]
[420396368,1776078942001,1445.0,0.0003013,120]
[420396369,1776078943769,622.0,0.0003013,120]
[420396370,1776078944051,1332.0,0.0003013,120]
[420396371,1776078944830,154.0,0.0003013,120]
[420396372,1776078945628,1538.0,0.0003013,120]
[420396373,1776078946506,496.0,0.0003013,120]
[420396374,1776078947243,853.0,0.0003013,120]
[420396375,1776078948819,1198.0,0.0003013,120]
[420396376,1776078949092,949.0,0.0003013,120]
[420396377,1776078949667,387.0,0.0003013,120]
[420396378,1776078950453,372.0,0.0003013,120]
[420396379,1776078951253,1603.0,0.0003013,120]
[420396380,1776078952043,959.0,0.0003013,120]
[420396381,1776078952849,1472.0,0.0003013,120]
[420396382,1776078953722,1618.0,0.0003013,120]
[420396383,1776078954553,532.0,0.0003013,120]
[420396384,1776078955329,1223.0,0.0003013,120]
[420396385,1776078956116,345.0,0.0003013,120]
[420396386,1776078965244,232.0,0.0003013,120]
[420396387,1776078966010,342.0,0.0003013,120]
[420396388,1776078966777,382.0,0.0003013,120]
[420396389,1776078967586,183.0,0.0003013,120]
[420396390,1776078968352,179.0,0.0003013,120]
[420396391,1776078969167,284.0,0.0003013,120]
[420396392,1776078970993,358.0,0.0003013,120]
[420396393,1776078971099,232.0,0.0003013,120]
[420396394,1776078971608,213.0,0.0003013,120]
[420396395,1776078972393,363.0,0.0003013,120]
[420396396,1776078973199,211.0,0.0003013,120]
[420396397,1776078974013,288.0,0.0003013,120]
[420396398,1776078974865,173.0,0.0003013,120]
[420396399,1776078975655,291.0,0.0003013,120]
[420396400,1776079005843,1674.0,0.0003013,120]
[420396401,1776079006698,1702.0,0.0003013,120]
[420396402,1776079007527,1625.0,0.0003013,120]
[420396403,1776079008811,710.0,0.0003013,120]
[420396404,1776079009617,685.0,0.0003013,120]
[420396405,1776079010384,1813.0,0.0003013,120]
[420396406,1776079011675,1161.0,0.0003013,120]
[420396407,1776079012486,1540.0,0.0003013,120]
[420396408,1776079013337,796.0,0.0003013,120]
[420396409,1776079015987,400.0,0.0003013,120]
[420396410,1776079016741,201.0,0.0003013,120]
[420396411,1776079017508,323.0,0.0003013,120]
[420396412,1776079018343,448.0,0.0003013,120]
[420396413,1776079019077,471.0,0.0003013,120]
[420396414,1776079019959,354.0,0.0003013,120]
[420396416,1776079055463,1238.0,0.0003013,120]
[420396417,1776079056249,1087.0,0.0003013,120]
[420396418,1776079057075,703.0,0.0003013,120]
[420396419,1776079059055,310.0,0.0003013,120]
[420396420,1776079059840,424.53012418,0.0003013,120]
[420396421,1776079068228,2773.73782,0.0002689,120]
[420396422,1776079074824,1590.311384,0.0002689,120]
[420396423,1776079082909,1000.0,0.00027397,120]
[420396424,1776079083230,1000.0,0.00030137,120]
[420396425,1776079092373,3034.0,0.00029987,120]
[420396426,1776079096359,6456.061156,0.0002689,120]
[420396428,1776079115380,1941.0,0.0003013,120]
[420396429,1776079116179,745.72437962,0.0003013,120]
[420396430,1776079159089,711.713625,0.0002689,120]
[420396431,1776079171861,938.017974,0.0002689,120]
[420396433,1776079224708,531.63056,0.0003013,120]
[420396434,1776079255226,2992.37,0.00030137,120]
[420396435,1776079263776,324.676819,0.0002689,120]
[420396436,1776079280072,868.098724,0.0002689,120]
[420396437,1776079282934,-150.0,0.00023518,8]
[420396438,1776079282976,-561.66,0.00023578,2]
[420396439,1776079283029,-1025.02,0.00023578,2]
[420396440,1776079283079,-500.0,0.00023636,2]
[420396441,1776079283125,-636.48293111,0.00023899,2]
[420396442,1776079283192,-636.4829311,0.0002396,2]
[420396443,1776079283236,-1218.21708715,0.00023976,2]
[420396447,1776079305179,3228.030576,0.0002693,120]
[420396448,1776079309286,162.338409,0.0002693,120]
[420396449,1776079326358,1653.3,0.00030082,120]
[420396450,1776079327419,1653.3,0.00030082,120]
[420396451,1776079347069,1600.0,0.00026052,120]
[420396452,1776079347242,1600.0,0.00028947,120]
[420396453,1776079361046,595.681711,0.0002689,120]
[420396454,1776079364619,271.708388,0.0002689,120]
[420396455,1776079389271,1000.0,0.00027397,120]
[420396456,1776079389883,1591.84797446,0.00030137,120]
[420396457,1776079468231,303.476403,0.0002689,120]
[420396458,1776079499422,255.779088,0.0002689,120]
[420396459,1776079511764,1614.015287,0.00026849,120]
[420396461,1776079533163,1444.0,0.00026137,120]
[420396462,1776079574214,192.720553,0.00026075,120]
[420396468,1776079629263,649.7,0.00030137,120]
[420396469,1776079649102,524.8176478,0.00027999,120]
[420396470,1776079665767,860.67641959,0.00030136,120]
[420396472,1776079702826,162.129,0.00030137,120]
[420396473,1776079713491,201.75191,0.00025652,120]
[420396474,1776079730193,2217.91,0.00011325,2]
[420396475,1776079730322,2217.91,0.00011921,2]
[420396476,1776079730571,2217.91,0.00012517,2]
[420396477,1776079730795,907.52942308,0.00013113,2]
[420396478,1776079730832,618.25228866,0.00013113,2]
[420396479,1776079730876,692.12828826,0.00013113,2]
[420396480,1776079731003,2217.91,0.00013709,2]
[420396481,1776079731196,2217.91,0.00014305,2]
[420396482,1776079732083,2217.91,0.00014902,2]
[420396483,1776079732173,2217.91,0.00015498,2]
[420396484,1776079741538,-2217.91,0.00016094,2]
[420396485,1776079741578,-2217.91,0.0001669,2]
[420396486,1776079741668,-736.65410128,0.00017286,2]
[420396487,1776079741796,-1481.25589872,0.00017286,2]
[420396488,1776079741839,-2217.91,0.00017882,2]
[420396489,1776079762583,173.16,0.00017868,2]
[420396491,1776079831862,-2217.91,0.00018478,2]
[420396492,1776079831872,-150.0,0.00018478,30]
[420396493,1776079831888,-2217.91,0.00019074,2]
[420396494,1776079831900,-1200.0,0.0001957,2]
[420396495,1776079831920,-300.0,0.00019669,2]
[420396496,1776079831930,-177.0,0.00019669,2]
[420396497,1776079831953,-2217.91,0.0001967,2]
[420396498,1776079831962,-150.0,0.00019801,8]
[420396499,1776079831972,-250.0,0.0001995,2]
[420396500,1776079831990,-889.0,0.0002,2]
[420396501,1776079832002,-150.0,0.000202,2]
[420396502,1776079832012,-2217.91,0.00020266,2]
[420396503,1776079832023,-229.78698358,0.00020325,2]
[420396504,1776079832049,-2217.91,0.00020862,2]
[420396505,1776079832058,-889.0,0.00021,2]
[420396506,1776079832075,-164.3555,0.000211,2]
[420396507,1776079832091,-1200.0,0.00021422,2]
[420396508,1776079832100,-420.0,0.00021425,2]
[420396509,1776079832111,-2217.91,0.00021458,2]
[420396510,1776079832132,-250.0,0.0002189,2]
[420396511,1776079832148,-889.0,0.00022,2]
[420396513,1776079832158,-180.0849,0.00022,2]
[420396515,1776079832168,-2217.91,0.00022054,2]
[420396517,1776079832185,-150.0,0.00022134,2]
[420396519,1776079832204,-184.43,0.00022182,3]
[420396521,1776079832213,-163.87616781,0.000225,2]
[420396523,1776079832233,-839.92,0.00022648,2]
[420396525,1776079832244,-1379.0,0.0002265,2]
[420396528,1776079832254,-2217.91,0.0002265,2]
[420396533,1776079832278,-249.44,0.00022698,2]
[420396535,1776079832290,-163.87616781,0.000227,2]
[420396536,1776079832317,-368.29768529,0.00022856,2]
[420396538,1776079832342,-197.3197,0.000229,2]
[420396540,1776079832363,-1229.68,0.00022906,2]
[420396543,1776079832387,-889.0,0.00023,2]
[420396545,1776079832433,-163.87616781,0.00023,2]
[420396546,1776079832447,-566.9,0.00023012,2]
[420396549,1776079832473,-500.0,0.0002305,2]
[420396550,1776079832482,-2367.73,0.0002305,2]
[420396551,1776079832505,-19816.81,0.00023072,2]
[420396552,1776079832515,-1600.0,0.00023158,2]
[420396553,1776079832525,-163.87616781,0.000232,2]
[420396554,1776079832534,-500.0,0.000232,2]
[420396555,1776079832558,-500.0,0.000232,2]
[420396556,1776079832568,-500.0,0.000232,2]
[420396557,1776079832578,-500.0,0.000232,2]
[420396558,1776079832598,-500.0,0.000232,2]
[420396559,1776079832608,-240.0,0.00023337,2]
[420396560,1776079832618,-500.0,0.00023418,2]
[420396561,1776079832637,-500.0,0.00023598,2]
[420396562,1776079832647,-200.0,0.000236,8]
[420396563,1776079832657,-1268.16,0.00023636,2]
[420396564,1776079832669,-500.0,0.000237,8]
[420396565,1776079832678,-500.0,0.00023748,2]
[420396566,1776079832688,-1000.0,0.00023748,2]
[420396567,1776079832700,-1000.0,0.00023774,2]
[420396568,1776079832710,-500.0,0.00023774,2]
[420396569,1776079832720,-839.92,0.0002378,2]
[420396570,1776079832734,-700.0,0.000238,8]
[420396571,1776079832743,-216.204,0.000238,2]
[420396572,1776079832754,-160.0,0.00023882,2]
[420396573,1776079832765,-1000.0,0.000239,8]
[420396574,1776079832789,-15115.2384,0.00023921,2]
[420396575,1776079832799,-368.29768529,0.00023921,2]
[420396576,1776079832808,-150.99,0.00023984,2]
[420396577,1776079832819,-299.99,0.00023998,7]
[420396578,1776079832832,-5916.47,0.00023998,2]
[420396579,1776079832843,-267.07005629,0.00024,43]
[420396580,1776079832853,-451.29126152,0.00024,43]
[420396581,1776079832865,-523.99603042,0.00024,43]
[420396582,1776079832885,-492.08422252,0.00024,43]
[420396583,1776079832897,-889.0,0.00024,2]
[420396584,1776079832907,-170.0,0.00024006,2]
[420396585,1776079832937,-170.0,0.00024006,2]
[420396586,1776079832947,-170.0,0.00024006,2]
[420396587,1776079832966,-170.0,0.00024006,2]
[420396588,1776079832983,-170.0,0.00024006,2]
[420396589,1776079832993,-170.0,0.00024006,2]
[420396590,1776079833026,-170.0,0.00024006,2]
[420396591,1776079833049,-170.0,0.00024006,2]
[420396592,1776079833078,-245.02460973,0.00024006,2]
[420396593,1776079833103,-1000.0,0.00024019,2]
[420396594,1776079833122,-194.8915,0.0002402,2]
[420396595,1776079833147,-2411.977,0.0002402,5]
[420396596,1776079833166,-166.589,0.0002402,5]
[420396597,1776079833192,-33057.3911,0.00024021,2]
[420396598,1776079833241,-1000.0,0.00024021,2]
[420396599,1776079833265,-2500.0,0.00024021,2]
[420396600,1776079833277,-194.94081726,0.00024021,2]
[420396601,1776079833301,-2588.11596061,0.00024021,2]
[420396602,1776079833325,-4678.83076662,0.00024021,2]
[420396603,1776079833364,-199.38982508,0.00024048,2]
[420396604,1776079833389,-375.0889331,0.00024085,2]
[420396605,1776079833402,-834.46,0.00024106,2]
[420396606,1776079833417,-200.0,0.00024106,2]
[420396607,1776079833431,-175.58609614,0.00024106,2]
[420396608,1776079833444,-151.0,0.00024106,2]
[420396609,1776079833454,-151.0,0.00024106,2]
[420396610,1776079833471,-151.0,0.00024106,2]
[420396611,1776079833482,-151.0,0.00024106,2]
[420396612,1776079833492,-151.0,0.00024106,2]
[420396613,1776079833511,-151.0,0.00024106,2]
[420396614,1776079833521,-151.0,0.00024106,2]
[420396615,1776079833531,-151.0,0.00024106,2]
[420396616,1776079833546,-151.0,0.00024106,2]
[420396617,1776079833561,-151.0,0.00024106,2]
[420396618,1776079833571,-151.0,0.00024106,2]
[420396619,1776079833583,-500.0,0.00024106,2]
[420396620,1776079833609,-500.0,0.00024106,2]
[420396621,1776079833618,-500.0,0.00024106,2]
[420396622,1776079833628,-500.0,0.00024106,2]
[420396623,1776079833639,-500.0,0.00024106,2]
[420396624,1776079833651,-500.0,0.00024106,2]
[420396625,1776079833660,-500.0,0.00024106,2]
[420396626,1776079833669,-500.0,0.00024106,2]
[420396627,1776079833678,-500.0,0.00024106,2]
[420396628,1776079833690,-279.9045709,0.00024106,2]
[420396629,1776079833702,-500.0,0.0002412,2]
[420396630,1776079833712,-356.089877,0.0002412,2]
[420396631,1776079833730,-500.0,0.0002412,2]
[420396632,1776079833740,-500.0,0.0002412,2]
[420396633,1776079833751,-608.12993359,0.0002412,2]
[420396634,1776079833762,-500.0,0.0002412,2]
[420396635,1776079833775,-500.0,0.0002412,2]
[420396636,1776079833784,-247.20810626,0.0002412,2]
[420396637,1776079833799,-170.39718922,0.0002412,2]
[420396638,1776079833812,-168.08278363,0.0002412,2]
[420396639,1776079833834,-500.0,0.0002412,2]
[420396640,1776079833843,-500.0,0.0002412,2]
[420396641,1776079833852,-500.0,0.0002412,2]
[420396642,1776079833868,-314.09697969,0.0002412,2]
[420396643,1776079833897,-500.0,0.0002412,2]
[420396644,1776079833910,-500.0,0.0002412,2]
[420396645,1776079833920,-500.0,0.0002412,2]
[420396646,1776079833941,-500.0,0.0002412,2]
[420396647,1776079833954,-500.0,0.0002412,2]
[420396648,1776079833965,-500.0,0.0002412,2]
[420396649,1776079833981,-500.0,0.0002412,2]
[420396650,1776079833996,-500.0,0.0002412,2]
[420396651,1776079834005,-500.0,0.0002412,2]
[420396652,1776079834021,-500.0,0.0002412,2]
[420396653,1776079834039,-500.0,0.0002412,2]
[420396654,1776079834060,-500.0,0.0002412,2]
[420396655,1776079834071,-500.0,0.0002412,2]
[420396656,1776079834091,-500.0,0.0002412,2]
[420396657,1776079834100,-500.0,0.0002412,2]
[420396658,1776079834109,-500.0,0.0002412,2]
[420396659,1776079834124,-500.0,0.0002412,2]
[420396660,1776079834141,-500.0,0.0002412,2]
[420396661,1776079834153,-500.0,0.0002412,2]
[420396662,1776079834166,-500.0,0.0002412,2]
[420396663,1776079834195,-500.0,0.0002412,2]
[420396664,1776079834205,-17978.60604323,0.00024121,2]
[420396665,1776079834985,-11789.81792149,0.00024121,2]
[420396666,1776079835009,-366.0,0.00024121,2]
[420396667,1776079836075,200.0,0.0003,120]
[420396668,1776079836320,255.0,0.0003,120]
[420396669,1776079838148,-2720.351333,0.00019472,2]
[420396670,1776079838161,-204.52013133,0.00024111,2]
[420396671,1776079838171,-6036.72853567,0.00024121,2]
[420396675,1776079839763,707.258796,0.00024385,120]
[420396677,1776079840165,-729.94768,0.00024121,2]
[420396678,1776079840248,-58480.42413492,0.00024121,2]
[420396685,1776079843165,-5680.24115367,0.00024121,2]
[420396693,1776079843603,2271.264611,0.00024385,120]
[420396699,1776079845978,-1082.23696318,0.00024121,2]
[420396700,1776079846270,-1352.0,0.00024121,2]
[420396711,1776079847337,3210.44292,0.00024385,120]
[420396712,1776079856785,2000.0,0.00030136,120]
[420396713,1776079889249,600.0,0.00030136,120]
[420396714,1776079890751,600.0,0.00030136,120]
[420396715,1776079890934,600.0,0.00030136,120]
[420396716,1776079891014,600.0,0.00030136,120]
[420396717,1776079891080,600.0,0.00030136,120]
[420396718,1776079891499,600.0,0.00030136,120]
[420396719,1776079891927,600.0,0.00030136,120]
[420396720,1776079892355,600.0,0.00030136,120]
[420396721,1776079892795,600.0,0.00030136,120]
[420396722,1776079893281,600.0,0.00030136,120]
[420396723,1776079893740,600.0,0.00030136,120]
[420396724,1776079894184,600.0,0.00030136,120]
[420396725,1776079894641,600.0,0.00030136,120]
[420396726,1776079895075,600.0,0.00030136,120]
[420396727,1776079895567,600.0,0.00030136,120]
[420396728,1776079896010,600.0,0.00030136,120]
[420396729,1776079896452,600.0,0.00030136,120]
[420396730,1776079896898,600.0,0.00030136,120]
[420396731,1776079897417,600.0,0.00030136,120]
[420396732,1776079897851,600.0,0.00030136,120]
[420396733,1776079898508,600.0,0.00030136,120]
[420396734,1776079898991,600.0,0.00030136,120]
[420396735,1776079899643,600.0,0.00030136,120]
[420396736,1776079900141,600.0,0.00030136,120]
[420396737,1776079902005,600.0,0.00030136,120]
[420396738,1776079902252,600.0,0.00030136,120]
[420396739,1776079902348,600.0,0.00030136,120]